Cogmind - Beta 14 *** ADVENTURER MODE // 2024.08.20 @ 20:43:16 Player: Ishmael Result: Destroyed by D-53 Grenadier with Mini Grenade Launcher Performance ------------- Evolutions (0) 0 Regions Visited (2) 400 Robots Destroyed (21) 105 Value Destroyed (351) 351 Prototype IDs (1) 20 Alien Tech Used (0) 0 Bonus (0) 0 TOTAL SCORE: 876 Bonus ------- None Cogmind --------- Core Integrity 0/250 Matter 295/300 Energy 117/125 System Corruption 1% Temperature Cool (0) Movement Walking (190) Ox1 Location -10/Mines Parts ------- > --- POWER (1) -------- Light Ion Engine > --- PROPULSION (2) --- Aluminum Leg > --- UTILITY (2) ------ Small Storage Unit Structural Scanner > --- WEAPON (2) ------- Improved Medium Laser > --- INVENTORY (8) ---- Aluminum Leg Aluminum Leg Compact Wheel Visual Processing Unit Targeting Computer Improved Light Armor Plating Mini Grenade Launcher Peak State ------------ > --- POWER ------------ Light Ion Engine > --- PROPULSION ------- Aluminum Leg Aluminum Leg > --- UTILITY ---------- Small Storage Unit Weapon Shielding > --- WEAPON ----------- Improved Medium Laser Improved Medium Laser > --- INVENTORY -------- Light Ion Engine Aluminum Leg Aluminum Leg Wheel Compact Wheel Visual Processing Unit Targeting Computer Mini Grenade Launcher [Rating: 12] Favorites ----------- Power Light Ion Engine Engine Light Ion Engine Propulsion Aluminum Leg Leg Aluminum Leg Utility Small Storage Unit Device Structural Scanner Storage Small Storage Unit Protection Weapon Shielding Weapon Improved Medium Laser Energy Gun Improved Medium Laser Special Weapon Mining Laser Build | -11 -10 -10 ------- Run | Yrd Mat Min Slots Evolved . | . . . Power . | . . . Propulsion . | . . . Utility . | . . . Weapon . | . . . Parts Attached 19 | 6 11 2 Power 4 | 1 2 1 Engine 4 | 1 2 1 Core . | . . . Reactor . | . . . Propulsion 4 | 2 2 . Treads . | . . . Leg 4 | 2 2 . Wheel . | . . . Hover . | . . . Flight . | . . . Utility 4 | 1 2 1 Device 1 | . . 1 Storage 1 | 1 . . Processor . | . . . Hackware . | . . . Protection 2 | . 2 . Artifact . | . . . Weapon 7 | 2 5 . Energy Gun 6 | 2 4 . Energy Cannon . | . . . Ballistic Gun . | . . . Ballistic Cannon . | . . . Launcher . | . . . Special Weapon 1 | . 1 . Impact Weapon . | . . . Slashing Weapon . | . . . Piercing Weapon . | . . . Special Melee Weapon . | . . . Unidentified Prototypes 1 | . 1 . Parts Lost 3 | . . 3 Power 1 | . . 1 Propulsion 1 | . . 1 Utility . | . . . Weapon 1 | . . 1 Highest Loss Streak 3 | . . 3 To Critical Strikes . | . . . Average Slot Usage (%) 98 | . 98 99 Engine 13 | . 14 13 Leg 27 | . 27 28 Device 2 | . . 11 Storage 14 | . 14 14 Protection 10 | . 12 2 Energy Gun 27 | . 27 27 Peak Build Rating 12 | 6 12 12 Average Rating 9 | 4 8 11 On Entrance 6 | . 6 12 Naked Turns . | . . . Heaviest Build 19 | 11 19 19 Greatest Support 20 | 20 20 20 Greatest Overweight (x) 1 | . . 1 Average Overweight (x) . | . . . Largest Inventory Capacity 8 | 8 8 8 Average Capacity 7 | 7 8 8 Most Carried 8 | 3 8 8 Average Carried 6 | 2 6 7 Final Capacity 8 | 8 8 8 Final Carried 8 | 3 8 7 Class Distribution -------------------- 100% | Mutant Dominant Class ---------------- Mutant | -10/Materials Mutant | -10/Mines Resources | -11 -10 -10 ----------- Run | Yrd Mat Min Matter Collected 386 | 205 171 10 Remotely . | . . . Salvage Created 651 | 16 593 42 Parts 41 | 4 36 1 Haulers Intercepted 2 | . 2 . Recyclers Shooed 2 | . 2 . Parts Field Recycled . | . . . Retrieved Matter . | . . . Parts Self-Destructed . | . . . Prevented . | . . . Kills | -11 -10 -10 ------- Run | Yrd Mat Min Combat Hostiles Destroyed 14 | . 13 1 Guns 14 | . 13 1 Classes Destroyed 6 | 1 5 . Tunneler 1 | 1 . . Hauler 2 | . 2 . Recycler 1 | . 1 . Watcher 3 | . 3 . Swarmer 9 | . 9 . Grunt 5 | . 4 1 Best Kill Streak 5 | 1 5 1 Combat Bots Only 5 | . 5 1 Max Kills in Single Turn 2 | 1 2 1 Gunslinging 1 | . 1 . Exploded . | . . . Melee . | . . . Uniques/NPCs Destroyed . | . . . Combat | -11 -10 -10 -------- Run | Yrd Mat Min Hostile Shots Fired 61 | . 38 23 Missed 13 | . 8 5 Damage Taken 789 | . 192 597 Core 285 | . 39 246 Absorbed by Shields . | . . . Redirected to Shielding 6 | . 6 . Ignored by Resistances 226 | . 63 163 Core Remaining (%) 100 | 100 . . Volleys Fired 38 | 2 33 3 Largest 2 | 2 2 2 Hottest 112 | 80 112 112 Shots Fired 77 | 4 66 7 Gun 77 | 4 66 7 Cannon . | . . . Launcher . | . . . Special . | . . . Kinetic . | . . . Thermal 49 | 2 40 7 Explosive . | . . . Electromagnetic 28 | 2 26 . Robot Hit Streak 22 | 1 17 22 Robot Miss Streak 2 | 2 2 . Penetration Max . | . . . Secondary Targets 1 | . 1 . Max Gunslinging Chain 1 | . 1 . Shots Hit Robots 54 | 1 48 5 Core Hits 28 | 1 25 2 Critical Kills . | . . . Critical Parts Destroyed . | . . . Critical Strikes 2 | . 2 . Burn 2 | . 2 . Melee Attacks . | . . . Impact . | . . . Slashing . | . . . Piercing . | . . . Sneak Attacks . | . . . Combat Hostiles . | . . . Follow-up Attacks . | . . . Damage Inflicted 783 | 12 684 87 Guns 756 | 12 657 87 Cannons . | . . . Explosions 27 | . 27 . Melee . | . . . Ramming . | . . . Kinetic . | . . . Thermal 495 | . 408 87 Explosive . | . . . Electromagnetic 288 | 12 276 . Impact . | . . . Slashing . | . . . Piercing . | . . . Highest Corruption 1 | . 1 1 Average Corruption 1 | . 1 1 Corruption Purged . | . . . Corruption Blocked . | . . . Effects 13 | . 7 6 Message Errors 1 | . 1 . Matter Fused 2 | . 1 1 Heat Flow Errors 4 | . 3 1 Energy Discharges 2 | . 1 1 Data Loss (minor) 2 | . . 2 Misfires 1 | . . 1 Alerts 1 | . 1 . Overload Shots . | . . . Overflow Damage . | . . . Projectiles . | . . . Explosions . | . . . Melee . | . . . Knockbacks . | . . . Impact . | . . . Kinetic . | . . . Secondary . | . . . Self-Inflicted Damage . | . . . Shots . | . . . Rammed . | . . . Targets Rammed . | . . . Kicked . | . . . Crushed . | . . . Highest Temperature 276 | 36 269 276 Average Temperature 73 | 20 68 112 Received Heat Transfer 93 | . 27 66 Siege Activations . | . . . Robots Corrupted . | . . . Combat Hostiles . | . . . Parts Fried . | . . . Impact Corruptions . | . . . Robots Melted . | . . . Combat Hostiles . | . . . Parts Melted 4 | . 4 . Heat Transferred 1177 | . 992 185 Parts Sabotaged . | . . . Parts Stolen . | . . . Parts Stripped . | . . . Power Chain Reactions 1 | . 1 . Alert | -11 -10 -10 ------- Run | Yrd Mat Min Peak Influence 274 | 5 274 48 Initial 3 | . 2 3 Average 66 | . 88 6 Maximum Alert Level 1 | . 1 . Low Security (%) 96 | 100 94 100 Level 1 3 | . 5 . Level 2 . | . . . Level 3 . | . . . Level 4 . | . . . Level 5 . | . . . High Security . | . . . Max Security . | . . . Squads Dispatched 1 | . 1 . Investigation 1 | . 1 . Extermination . | . . . Reinforcement . | . . . Assault . | . . . Garrison . | . . . Intercept . | . . . Searches Triggered . | . . . Construction Impeded . | . . . Haulers Reinforced . | . . . Active Scanning Responses . | . . . Cargo Convoy Interrupts . | . . . Stealth | -11 -10 -10 --------- Run | Yrd Mat Min Distress Signals . | . . . Communications Jammed . | . . . Distress Signals . | . . . Times Spotted 27 | . 22 5 Peak Tracking Total 4 | . 4 3 Tactical Retreats 4 | . 3 1 Traps | -11 -10 -10 ------- Run | Yrd Mat Min Traps Triggered 1 | . 1 . Indirectly . | . . . Trap Hack Attempts . | . . . Triggered . | . . . Disarmed . | . . . Reprogrammed . | . . . Reused . | . . . Traps Extracted . | . . . Installed . | . . . Triggered . | . . . Machines | -11 -10 -10 ---------- Run | Yrd Mat Min Machines Disabled . | . . . Max in Single Turn . | . . . Machines Repaired . | . . . Machines Dismantled . | . . . Machines Sabotaged . | . . . Overloaded Fab Kills . | . . . Hacking | -11 -10 -10 --------- Run | Yrd Mat Min Machines Accessed 11 | . 10 1 Terminals 8 | . 8 . Fabricators . | . . . Repair Stations . | . . . Recycling Units 2 | . 2 . Scanalyzers . | . . . Garrison Access . | . . . Total Hacks 33 | . 32 1 Successful 21 | . 20 1 Failed 11 | . 11 . Catastrophic 3 | . 3 . Database Lockouts 1 | . 1 . Manual 24 | . 24 . Terminals 27 | . 27 . Fabricators . | . . . Repair Stations . | . . . Recycling Units 5 | . 5 . Scanalyzers . | . . . Garrison Access . | . . . Terminal Hacks 10 | . 9 1 Record 1 | . 1 . Robot Analysis 2 | . 2 . Open Door 1 | . . 1 Level Access Points 1 | . 1 . Scanalyzer Index 1 | . 1 . Alert Level 1 | . 1 . Dispatch Records 1 | . 1 . Hauler Manifests 1 | . 1 . Registered Components 1 | . 1 . Fabricator Hacks . | . . . Repair Station Hacks . | . . . Recycling Unit Hacks 1 | . 1 . Retrieve Components 1 | . 1 . Scanalyzer . | . . . Garrison Access Hacks . | . . . Unauthorized Hacks 10 | . 10 . Terminals 8 | . 8 . Botnet 8 | . 8 . Fabricators . | . . . Repair Stations . | . . . Recycling Units 2 | . 2 . Mask 2 | . 2 . Scanalyzers . | . . . Garrison Access . | . . . Data Cores Recovered . | . . . Used . | . . . Hacking Detections 9 | . 9 . Full Trace Events 4 | . 4 . Feedback Events . | . . . Feedback Blocked . | . . . Robot Schematics Acquired . | . . . Robots Built . | . . . Authchips . | . . . Time . | . . . Total Robot Build Rating . | . . . Part Schematics Acquired . | . . . Parts Built . | . . . Authchips . | . . . Time . | . . . Total Part Build Rating . | . . . Parts Repaired . | . . . Time . | . . . Parts Recycled . | . . . Recycled Matter . | . . . Retrieved Matter . | . . . Retrieved Components 10 | . 10 . Parts Scanalyzed . | . . . Part Schematics Acquired . | . . . Parts Damaged . | . . . Bothacking | -11 -10 -10 ------------ Run | Yrd Mat Min Used RIF Installer . | . . . Robots Hacked . | . . . Non-combat . | . . . Combat . | . . . Robot Hacks Applied . | . . . Relay Couplers Released . | . . . Fabnet Peak Effective % . | . . . Robots Rewired . | . . . Allies Hacked . | . . . Hacks Repelled . | . . . Allies | -11 -10 -10 -------- Run | Yrd Mat Min Total Allies . | . . . Largest Group . | . . . Highest-Rated Group . | . . . Highest-Rated Ally . | . . . Total Orders . | . . . Ally Attacks . | . . . Total Damage . | . . . Kills . | . . . Allies Corrupted . | . . . Allies Melted . | . . . Intel | -11 -10 -10 ------- Run | Yrd Mat Min Robot Analysis Total 2 | . 2 . Derelict Logs Recovered . | . . . Drone Launches . | . . . Drone Recoveries . | . . . Exploration | -11 -10 -10 ------------- Run | Yrd Mat Min Turns Passed 2424 | 72 1778 574 Spaces Moved 1814 | 46 1317 451 Core 1 | 1 . . Treads . | . . . Legs 1813 | 45 1317 451 Wheels . | . . . Hover . | . . . Flight . | . . . Fastest Speed 50 | 50 120 120 Average Speed 120 | 118 120 120 Slowest Speed 190 | 120 120 190 Overloaded Moves . | . . . Propulsion Burnouts . | . . . Robots Hopped . | . . . Cave-ins Triggered . | . . . Exploration Rate (%) 59 | 4 99 74 Regions Visited 2 Branch Regions 1 Pre-discovered Areas . | . . . Known Exits Taken . | . . . Unknown Exits Taken 2 | 1 1 . Scrap Searched 1 | . . 1 Spaces Dug . | . . . Terrain Destroyed 5 | . 5 . Melee . | . . . Projectile . | . . . AOE 5 | . 5 . Terrain Rammed . | . . . Walls Destroyed . | . . . Machines Disabled . | . . . Actions | -11 -10 -10 --------- Run | Yrd Mat Min Total 1982 | 56 1448 478 Wait 87 | . 71 16 Move 1812 | 45 1316 451 Hop . | . . . Pick Up 12 | 3 6 3 Fast Attach 17 | 6 11 . Attach 2 | . . 2 Detach . | . . . Swap . | . . . Drop 14 | . 11 3 Fire 38 | 2 33 3 Melee . | . . . Ram . | . . . Kick . | . . . Crush . | . . . Escape Stasis . | . . . Rewire . | . . . Trap . | . . . Miscellaneous . | . . . Route ------- -11/Scrapyard -10/Materials (discovered 6 exits: *Mat x3 / *Min x2 / [*Sub]) -10/Mines History --------- Turn | Location | Event 27 | -11/Scrapyard | Discovered new exit (range 16) 73 | -11/Scrapyard | Entered Materials 312 | -10/Materials | Build established: Mutant 561 | -10/Materials | Discovered new exit (range 9) 713 | -10/Materials | Discovered new exit (range 10) 1049 | -10/Materials | Discovered new exit (range 5) 1121 | -10/Materials | Discovered new exit (range 15) 1396 | -10/Materials | Discovered new exit (range 6) 1638 | -10/Materials | Identified exit to Materials 1665 | -10/Materials | Central database locked down 1851 | -10/Materials | Entered Mines 1985 | -10/Mines | A weapon hastily lodged in a ceiling crevice suddenly fell to the ground 2058 | -10/Mines | YI-UF0 nonchalantly dropped a Grenade Launcher on the ground 2140 | -10/Mines | Assembled infested the area 2145 | -10/Mines | Assisted by a Guerilla fighting off Assembled 2148 | -10/Mines | Received a Rocket Launcher from a helpful Derelict 2251 | -10/Mines | Met a Derelict who couldn't figure out how to use a Trap Extractor 2410 | -10/Mines | Core integrity fell below 50% 2421 | -10/Mines | Core integrity fell below 20% 2425 | -10/Mines | Destroyed by D-53 Grenadier with Mini Grenade Launcher Last Messages --------------- 02251_ Tosses Imp. Trap Extractor to the ground. 02251_ 3H-9NA(g) triggered EMP Trap. 02251_ A bubble of electromagnetic force engulfs the area. 02251_ Machine disabled. 02256_ Dropped Lgt. Armor Plating. 02257_ Acquired Imp. Light Armor Plating. 02280_ System corrupted: FCS attempts to trigger Imp. Medium Laser. 02280_ System corrupted: Imp. Medium Laser misfires. 02373_ System corrupted: Heat flow error (+294). 02405_ K-01 Serf destroyed. 02409_ Ion Engine destroyed. 02413_ The unstable cave ceiling collapses. 02413_ Imp. Medium Laser destroyed. 02414_ The unstable cave ceiling collapses. 02421_ U-05 Engineer lays Concrete. 02421_ Aluminum Leg destroyed. 02422_ The unstable cave ceiling collapses. 02422_ U-05 Engineer lays Concrete. Map ----- +----------------------------------------------------+ | ???????# #???????######### ### ######## ] | | ???????###???????## #### ### | | ??????? ????????? ### ############ #### | | ??????? ???????? ########### ##### | | ?????? ??##### ###??????## ###### | | ?????? ####### #??????## ######## | | ?????? ## # ##????????## ######## | | ????? ###???????### ##### | | ????? ###???????#### #### | | ???# % ##????????### """ | | ???## = ###???????## """ ### | | ???### ###???????## """ #### | | ????## ??? ## ##???????## ##?# | | ??????????### g ###?????### ###?? | | ???????????### # # ###?????### #####?? | | ???????????###### ## ##?????## #####??? | | ????????????###### dd ## ###### ####???? | | ???????????????#### ### ###### ###???? | | ????????????????### # # ##???# | | ?????????????????## # ## r ##???# | | ?????????????????## #r## ##### ##???# | | ????????????????### # ## ###### ###?### | | ????????????????### ## ####### ####### | | ????????????????## #### ######### ##?### | | ????????????????### ### ######## ##### | | ????????????????##### @ ####### ##### | | ?????????????????#### ### | | ???????????????????### ## ######## | | ???????????????????############# ####### | | ????????????????????############# ##### | | ??????????????????????????????### #### | | ???????????????????????????????## ## ## | | ???????????????????????????????## #### """ | | ???????????????????????????????## ## """ | | ???????????????????????????????#### # """ | | ???????????????????????????????#### ### | | ????????????????????????????????????#### | | ?????????????????????????????????????### ## | | ?????????????????????????????????????### #### | | ????????????????????????????????????### ##### | | ???????????????????????????????????### ####?? | | ???????????????????????????????????## ######??? | | ???????????????????????????????????### ######???? | | ???????????????????????????????????#######???????? | | ????????????????????????????????????#####????????? | | | | | | | | | | | +----------------------------------------------------+ Best States ------------- Heat Dissipation 25 Energy Generation 10 Energy Capacity 250 Matter Stores 300 Matter Capacity 300 Sight Range 16 Terrain Scan Density 10 Armor Coverage 150 Resistance: KI 20 Resistance: TH 20 Resistance: EX 20 Resistance: EM 20 Resistance: I 20 Resistance: S 20 Resistance: P 20 Weapon Shielding 33 Evasion (%) 55 Offensive Hacking 10 Item Schematics ----------------- None Robot Schematics ------------------ None Fabricated ------------ Nothing Alien Tech Used ----------------- None Achievements -------------- None Challenges ------------ None Game ------ Seed WeldingMultinovaTorch Manual? 0 Play Time 00:33:43 Cumulative 63.4 hours Start 2024.08.20 @ 20:10:42 End 2024.08.20 @ 20:43:16 Sessions 1 Manual Loads 0 Difficulty Adventurer Special Mode None Game No. 19 Rogue 0 Adventurer 19 Explorer 0 Win Type - Total 1 Types 1/0/0/0/0/0/0/0/0 Lore% 18 Gallery% 33 Achievement% 34 Wizard Run 0 Options --------- Layout 1 ASCII 0 Keyboard 0 Movement Mouse Keybinds 0 Fullscreen 1 Font 20/Terminus Map View 54x42 Zoom Use 0% Tactical HUD 1 Map Filters NONE Filters NONE Steam 1 RUN: 3fb168aa-b4c2-4552-828a-e7464866eb66